Cogmind - Beta 14 *** ADVENTURER MODE // 2024.08.13 @ 01:27:23 Player: Ms. V3-11A Result: Destroyed by HD-ZX7(R) with Subdweller Beam Cannon Performance ------------- Evolutions (0) 0 Regions Visited (2) 400 Robots Destroyed (19) 95 Value Destroyed (295) 295 Prototype IDs (5) 100 Alien Tech Used (0) 0 Bonus (0) 0 TOTAL SCORE: 890 Bonus ------- None Cogmind --------- Core Integrity 0/250 Matter 140/300 Energy 100/100 System Corruption 0% Temperature Cool (9) Movement Core (450) Ox8 Location -10/Subcaves Parts ------- > --- POWER (1) -------- (None) > --- PROPULSION (2) --- (None) > --- UTILITY (2) ------ Large Storage Unit > --- WEAPON (2) ------- Heavy Assault Rifle Heavy Assault Rifle > --- INVENTORY (15) --- Improved Ion Engine Improved Ion Engine Improved Ion Engine Light Treads Large Storage Unit Large Battery (200) High-capacity Matter Pod (35) Authchip [R/Combat] Authchip [R/Combat] Beam Cannon Heavy Assault Rifle Peak State ------------ > --- POWER ------------ Improved Ion Engine > --- PROPULSION ------- Light Treads Light Treads > --- UTILITY ---------- Large Storage Unit > --- WEAPON ----------- Makeshift Laser Heavy Assault Rifle > --- INVENTORY -------- Improved Ion Engine Improved Ion Engine Improved Ion Engine Light Treads Light Treads Large Storage Unit Large Battery High-capacity Matter Pod Authchip [R/Combat] Authchip [R/Combat] Beam Cannon Heavy Assault Rifle Heavy Assault Rifle Heavy Assault Rifle [Rating: 13] Favorites ----------- Power Ion Engine Engine Ion Engine Propulsion Light Treads Treads Light Treads Leg Aluminum Leg Utility Large Storage Unit Storage Large Storage Unit Weapon EM Pulse Gun Energy Gun EM Pulse Gun Energy Cannon Beam Cannon Ballistic Gun Heavy Assault Rifle Build | -11 -10 -10 ------- Run | Yrd Mat Sub Slots Evolved . | . . . Power . | . . . Propulsion . | . . . Utility . | . . . Weapon . | . . . Parts Attached 18 | 3 10 5 Power 2 | 1 1 . Engine 2 | 1 1 . Core . | . . . Reactor . | . . . Propulsion 7 | 2 4 1 Treads 7 | 2 4 1 Leg . | . . . Wheel . | . . . Hover . | . . . Flight . | . . . Utility 1 | . 1 . Device . | . . . Storage 1 | . 1 . Processor . | . . . Hackware . | . . . Protection . | . . . Artifact . | . . . Weapon 8 | . 4 4 Energy Gun 4 | . 3 1 Energy Cannon 1 | . . 1 Ballistic Gun 3 | . 1 2 Ballistic Cannon . | . . . Launcher . | . . . Special Weapon . | . . . Impact Weapon . | . . . Slashing Weapon . | . . . Piercing Weapon . | . . . Special Melee Weapon . | . . . Unidentified Prototypes . | . . . Parts Lost 8 | . 1 7 Power 1 | . . 1 Propulsion 3 | . . 3 Utility . | . . . Weapon 4 | . 1 3 Highest Loss Streak 5 | . 1 5 To Critical Strikes . | . . . Average Slot Usage (%) 84 | . 84 81 Engine 13 | . 14 12 Treads 27 | . 27 26 Storage 14 | . 14 14 Energy Gun 20 | . 22 10 Ballistic Gun 7 | . 5 14 Peak Build Rating 13 | 6 10 13 Average Rating 7 | 5 7 10 On Entrance 7 | 6 6 10 Naked Turns . | . . . Heaviest Build 34 | 14 34 32 Greatest Support 40 | 40 40 40 Greatest Overweight (x) 1 | . 1 . Average Overweight (x) . | . . . Largest Inventory Capacity 15 | 8 15 15 Average Capacity 13 | 8 13 15 Most Carried 15 | 5 15 15 Average Carried 11 | 3 10 13 Final Capacity 15 | 8 15 15 Final Carried 15 | 2 15 11 Class Distribution -------------------- 100% | Mutant Dominant Class ---------------- Mutant | -10/Materials Mutant | -10/Subcaves Resources | -11 -10 -10 ----------- Run | Yrd Mat Sub Matter Collected 462 | 200 182 80 Remotely . | . . . Salvage Created 442 | . 210 232 Parts 32 | . 17 15 Haulers Intercepted 2 | . 2 . Recyclers Shooed . | . . . Parts Field Recycled . | . . . Retrieved Matter . | . . . Parts Self-Destructed 11 | . . 11 Prevented 4 | . . 4 Kills | -11 -10 -10 ------- Run | Yrd Mat Sub Combat Hostiles Destroyed 15 | . 9 6 Guns 11 | . 5 6 AOE 4 | . 4 . Classes Destroyed 5 | . 2 3 Hauler 2 | . 2 . Turret 2 | . . 2 Swarmer 13 | . 9 4 Grunt 2 | . . 2 Artisan 1 | . . 1 Best Kill Streak 7 | . 7 4 Combat Bots Only 6 | . 6 4 Max Kills in Single Turn 3 | . 3 1 Gunslinging 1 | . 1 . Exploded 3 | . 3 . Melee . | . . . Uniques/NPCs Destroyed . | . . . Combat | -11 -10 -10 -------- Run | Yrd Mat Sub Hostile Shots Fired 152 | . 42 110 Missed 42 | . 8 34 Damage Taken 1427 | . 338 1089 Core 260 | . 43 217 Absorbed by Shields . | . . . Ignored by Resistances 407 | . 102 305 Regen/Repaired (Parts) 119 | . 119 . Core Remaining (%) 100 | 100 . . Volleys Fired 84 | . 25 59 Largest 2 | . 2 2 Hottest 173 | . 90 173 Shots Fired 162 | . 46 116 Gun 146 | . 46 100 Cannon 16 | . . 16 Launcher . | . . . Special . | . . . Kinetic 83 | . 14 69 Thermal 52 | . 24 28 Explosive . | . . . Electromagnetic 27 | . 8 19 Robot Hit Streak 30 | . 14 30 Robot Miss Streak 4 | . 4 4 Penetration Max . | . . . Secondary Targets 2 | . 1 1 Max Gunslinging Chain 1 | . 1 1 Shots Hit Robots 129 | . 33 96 Core Hits 25 | . 12 13 Critical Kills . | . . . Critical Parts Destroyed . | . . . Critical Strikes . | . . . Melee Attacks . | . . . Impact . | . . . Slashing . | . . . Piercing . | . . . Sneak Attacks . | . . . Combat Hostiles . | . . . Follow-up Attacks . | . . . Damage Inflicted 1287 | . 774 513 Guns 930 | . 417 513 Cannons . | . . . Explosions 347 | . 347 . Melee . | . . . Ramming 10 | . 10 . Kinetic 372 | . 114 258 Thermal 340 | . 252 88 Explosive 293 | . 293 . Electromagnetic 272 | . 105 167 Impact . | . . . Slashing . | . . . Piercing . | . . . Highest Corruption . | . . . Average Corruption . | . . . Corruption Purged . | . . . Corruption Blocked . | . . . Overload Shots 3 | . . 3 Effects 1 | . . 1 Energy Bleed 1 | . . 1 Overflow Damage . | . . . Projectiles . | . . . Explosions . | . . . Melee . | . . . Knockbacks . | . . . Impact . | . . . Kinetic . | . . . Secondary . | . . . Self-Inflicted Damage 129 | . 129 . Shots 2 | . 2 . Rammed 1 | . 1 . Targets Rammed 1 | . 1 . Kicked . | . . . Crushed . | . . . Highest Temperature 219 | . 120 219 Average Temperature 55 | . 47 91 Received Heat Transfer 702 | . . 702 Siege Activations . | . . . Robots Corrupted . | . . . Combat Hostiles . | . . . Parts Fried 2 | . 1 1 Impact Corruptions . | . . . Robots Melted . | . . . Combat Hostiles . | . . . Parts Melted 1 | . 1 . Heat Transferred 829 | . 692 137 Parts Sabotaged . | . . . Parts Stolen . | . . . Parts Stripped . | . . . Power Chain Reactions 1 | . 1 . Alert | -11 -10 -10 ------- Run | Yrd Mat Sub Peak Influence 242 | . 242 . Initial . | . . . Average 55 | . 56 . Maximum Alert Level 1 | . 1 . Low Security (%) 91 | 100 91 . Level 1 8 | . 8 . Level 2 . | . . . Level 3 . | . . . Level 4 . | . . . Level 5 . | . . . High Security . | . . . Max Security . | . . . Squads Dispatched . | . . . Investigation . | . . . Extermination . | . . . Reinforcement . | . . . Assault . | . . . Garrison . | . . . Intercept . | . . . Searches Triggered . | . . . Construction Impeded . | . . . Haulers Reinforced . | . . . Active Scanning Responses . | . . . Cargo Convoy Interrupts . | . . . Stealth | -11 -10 -10 --------- Run | Yrd Mat Sub Distress Signals 1 | . 1 . Communications Jammed . | . . . Distress Signals . | . . . Times Spotted 30 | . 21 9 Peak Tracking Total 5 | . 5 3 Tactical Retreats 1 | . . 1 Traps | -11 -10 -10 ------- Run | Yrd Mat Sub Traps Triggered 2 | . 2 . Indirectly . | . . . Trap Hack Attempts . | . . . Triggered . | . . . Disarmed . | . . . Reprogrammed . | . . . Reused . | . . . Traps Extracted . | . . . Installed 1 | . . 1 Triggered . | . . . Machines | -11 -10 -10 ---------- Run | Yrd Mat Sub Machines Disabled 4 | . 2 2 Max in Single Turn 2 | . 2 1 Machines Repaired . | . . . Machines Dismantled . | . . . Machines Sabotaged . | . . . Overloaded Fab Kills . | . . . Hacking | -11 -10 -10 --------- Run | Yrd Mat Sub Machines Accessed 9 | . 9 . Terminals 8 | . 8 . Fabricators . | . . . Repair Stations 1 | . 1 . Recycling Units . | . . . Scanalyzers . | . . . Garrison Access . | . . . Total Hacks 27 | . 27 . Successful 17 | . 17 . Failed 9 | . 9 . Catastrophic 1 | . 1 . Database Lockouts 1 | . 1 . Manual 23 | . 23 . Terminals 25 | . 25 . Fabricators . | . . . Repair Stations 2 | . 2 . Recycling Units . | . . . Scanalyzers . | . . . Garrison Access . | . . . Terminal Hacks 7 | . 7 . Robot Analysis 1 | . 1 . Prototype ID Bank 5 | . 5 . Branch Access Points 1 | . 1 . Fabricator Hacks . | . . . Repair Station Hacks 2 | . 2 . Scan Component 1 | . 1 . Repair 1 | . 1 . Recycling Unit Hacks . | . . . Scanalyzer . | . . . Garrison Access Hacks . | . . . Unauthorized Hacks 8 | . 8 . Terminals 8 | . 8 . Botnet 3 | . 3 . Skim 5 | . 5 . Fabricators . | . . . Repair Stations . | . . . Recycling Units . | . . . Scanalyzers . | . . . Garrison Access . | . . . Data Cores Recovered . | . . . Used . | . . . Hacking Detections 9 | . 9 . Full Trace Events . | . . . Feedback Events . | . . . Feedback Blocked . | . . . Robot Schematics Acquired . | . . . Robots Built . | . . . Authchips . | . . . Time . | . . . Total Robot Build Rating . | . . . Part Schematics Acquired . | . . . Parts Built . | . . . Authchips . | . . . Time . | . . . Total Part Build Rating . | . . . Parts Repaired 1 | . 1 . Time 26 | . 26 . Parts Recycled . | . . . Recycled Matter . | . . . Retrieved Matter . | . . . Retrieved Components . | . . . Parts Scanalyzed . | . . . Part Schematics Acquired . | . . . Parts Damaged . | . . . Bothacking | -11 -10 -10 ------------ Run | Yrd Mat Sub Used RIF Installer . | . . . Robots Hacked . | . . . Non-combat . | . . . Combat . | . . . Robot Hacks Applied . | . . . Relay Couplers Released . | . . . Fabnet Peak Effective % . | . . . Robots Rewired . | . . . Allies Hacked . | . . . Hacks Repelled . | . . . Allies | -11 -10 -10 -------- Run | Yrd Mat Sub Total Allies . | . . . Largest Group . | . . . Highest-Rated Group . | . . . Highest-Rated Ally . | . . . Total Orders . | . . . Ally Attacks . | . . . Total Damage . | . . . Kills . | . . . Allies Corrupted . | . . . Allies Melted . | . . . Intel | -11 -10 -10 ------- Run | Yrd Mat Sub Robot Analysis Total 1 | . 1 . Derelict Logs Recovered 1 | . . 1 Drone Launches . | . . . Drone Recoveries . | . . . Exploration | -11 -10 -10 ------------- Run | Yrd Mat Sub Turns Passed 2692 | 6 2223 463 Spaces Moved 1148 | 1 971 176 Core . | . . . Treads 1148 | 1 971 176 Legs . | . . . Wheels . | . . . Hover . | . . . Flight . | . . . Fastest Speed 160 | 160 160 160 Average Speed 160 | 160 160 160 Slowest Speed 240 | 160 240 160 Overloaded Moves . | . . . Propulsion Burnouts . | . . . Robots Hopped . | . . . Cave-ins Triggered . | . . . Exploration Rate (%) 38 | 2 95 19 Regions Visited 2 Branch Regions 1 Pre-discovered Areas . | . . . Known Exits Taken 1 | . 1 . Unknown Exits Taken 1 | 1 . . Scrap Searched . | . . . Spaces Dug . | . . . Terrain Destroyed 40 | . 40 . Melee . | . . . Projectile . | . . . AOE 40 | . 40 . Terrain Rammed . | . . . Walls Destroyed . | . . . Machines Disabled . | . . . Actions | -11 -10 -10 --------- Run | Yrd Mat Sub Total 1848 | 7 1598 243 Wait 559 | . 559 . Move 1146 | . 970 176 Hop . | . . . Pick Up 23 | . 22 1 Fast Attach 8 | . 8 . Attach 7 | 2 1 4 Detach . | . . . Swap 3 | 1 1 1 Drop 16 | 4 11 1 Fire 84 | . 25 59 Melee . | . . . Ram . | . . . Kick . | . . . Crush 1 | . 1 . Escape Stasis . | . . . Rewire . | . . . Trap 1 | . . 1 Miscellaneous . | . . . Route ------- -11/Scrapyard -10/Materials (discovered 5 exits: *Mat x3 / *Min / *Sub) -10/Subcaves (discovered 1 exit: [*Rec]) History --------- Turn | Location | Event 7 | -11/Scrapyard | Discovered new exit (range 0) 7 | -11/Scrapyard | Entered Materials 311 | -10/Materials | Build established: Mutant 404 | -10/Materials | Discovered new exit (range 11) 688 | -10/Materials | Discovered new exit (range 12) 814 | -10/Materials | Identified exit to Mines 876 | -10/Materials | Repaired Lgt. Treads 1002 | -10/Materials | Discovered new exit (range 15) 1050 | -10/Materials | Identified exit to Subcaves 1050 | -10/Materials | Identified exit to Materials 1143 | -10/Materials | Learned Storage garrison access intel 1177 | -10/Materials | Learned Storage garrison access intel 1201 | -10/Materials | Learned location of 1 exit from Storage 1274 | -10/Materials | Learned location of 2 exits from Materials 1925 | -10/Materials | Central database locked down 2230 | -10/Materials | Entered Subcaves 2236 | -10/Subcaves | Shifting Twisted Machinery released Shrapnel Trap 2272 | -10/Subcaves | Shifting Twisted Machinery released Mak. Laser 2464 | -10/Subcaves | Discovered new exit (range 10) 2568 | -10/Subcaves | Ambushed by angry Subdweller bent on revenge 2583 | -10/Subcaves | Core integrity fell below 50% 2641 | -10/Subcaves | Core integrity fell below 20% 2677 | -10/Subcaves | Lost 5 parts (1p2n2w) 2693 | -10/Subcaves | Destroyed by HD-ZX7(R) with Subdweller Beam Cannon Last Messages --------------- 02602_ Lgt. Treads destroyed. 02608_ Mak. Laser destroyed. 02614_ Hvy. Assault Rifle destroyed. 02630_ Imp. Ion Engine destroyed. 02646_ Lgt. Treads destroyed. 02668_ HD-ZX7(R) heat damages Sub. Power Source. 02668_ Critical hit (Meltdown: +240). 02670_ HD-ZX7(R) overheating. 02671_ HD-ZX7(R) heat damages Sub. Beam Cannon, Sub. Power Source. 02671_ HD-ZX7(R) overheating. 02678_ HD-ZX7(R) heat spikes uncontrollably. 02678_ HD-ZX7(R) overheating. 02679_ HD-ZX7(R) heat short circuits Sub. Monowheel. 02679_ HD-ZX7(R) overheating. 02684_ HD-ZX7(R) heat damages Sub. Beam Cannon. 02684_ HD-ZX7(R) overheating. 02686_ HD-ZX7(R) heat spikes uncontrollably. 02686_ HD-ZX7(R) overheating. 02693_ Lgt. Treads destroyed. Map ----- +----------------------------------------------------+ | ????????????????????????????????????????????## | | ?????????????????????????????????????????????# | | ?????????????????????????????????????# ##### | | ???????????????????????????????????? | | ?????????????????????????????????? ## | | ??????????????????????????????????? ### ?## | | ???????????????????????????????????#??????# ?## | | ??????????????????????????????????????????# ### | | ??????????????????????????????????????????### ## | | ????????????????????????????##????????##????## # | | ???????????????????????????## #???????# ????? # | | ???????????????????????????? ####???# ????## ## | | ????????????????????????????# ??## ????# # | | ???????????????????????????## ??# ????? | | ???????????????????????????# ##?# ????## #? | | ???????????????????????????# ## # ##### #? | | ????????????????????????????# " ## # ## | | ?????????????????????????????# ""? # | | ??????????????????????????????# ""##??# # | | ???????????????????????????????# ""#### | | ???????????????????????????????# " | | ???????????????????????????????#| | | ??????????????## ##??##?####### #### ### | | ??????????????# # ##" ##" # ##??### #?# | | ???????????????# R " # #?????# ##?? | | ????????????????# @ ## ????# ##??? | | ????????????????# # ## ;# #######???###???? | | ???????????????# ### ?#;#####"###???????????????? | | ??????????????????????# #?????? #????????????????? | | ?????????????????????# #????????#????????????????? | | ?????????????????????##??????????????????????????? | | ?????????????????????????????????????????????????? | | ?????????????????????????????????????????????????? | | ?????????????????????????????????????????????????? | | ?????????????????????????????????????????????????? | | ?????????????????????????????????????????????????? | | ?????????????????????????????????????????????????? | | ?????????????????????????????????????????????????? | | ?????????????????????????????????????????????????? | | ?????????????????????????????????????????????????? | | ?????????????????????????????????????????????????? | | ?????????????????????????????????????????????????? | | ?????????????????????????????????????????????????? | | | | | | | | | | | | | | | +----------------------------------------------------+ Best States ------------- Heat Dissipation 25 Energy Generation 12 Energy Capacity 265 Matter Stores 300 Matter Capacity 300 Sight Range 16 Terrain Scan Density 10 Resistance: KI 20 Resistance: TH 20 Resistance: EX 20 Resistance: EM 20 Resistance: I 20 Resistance: S 20 Resistance: P 20 Evasion (%) 40 Recoil Reduction 2 Offensive Hacking 10 Authchip Count 2 Item Schematics ----------------- None Robot Schematics ------------------ None Fabricated ------------ Nothing Alien Tech Used ----------------- None Achievements -------------- None Challenges ------------ None Game ------ Seed SniperSubatomicProtomatter Manual? 0 Play Time 00:14:57 Cumulative 266.6 hours Start 2024.08.13 @ 01:11:17 End 2024.08.13 @ 01:27:23 Sessions 1 Manual Loads 0 Difficulty Adventurer Special Mode None Game No. 199 Rogue 63 Adventurer 110 Explorer 26 Win Type - Total 1 Types 1/0/0/0/0/0/0/0/0 Lore% 61 Gallery% 68 Achievement% 68 Wizard Run 0 Options --------- Layout 2 ASCII 0 Keyboard 0 Movement Mouse Keybinds 0 Fullscreen 0 Font 18/CogNarrow Map View 64x51 Zoom Use 0% Tactical HUD 1 Map Filters NONE Filters BRIGHTNESS(115)|SATURATION(100)|LOW_CONTRAST(0,16,30) Steam 1 RUN: 1a93b37c-d402-4928-8335-5e133e27aee7